bitfinex/quotes_SOLUSD_20250611
["timestamp","ask_amount","ask_price","bid_price","bid_amount"]
[1749600778344,26.0,165.21,165.1,19.26121726]
[1749600778653,26.0,165.21,165.12,0.14216157]
[1749600778869,26.0,165.21,165.2,19.26121726]
[1749600779474,18.64964886,165.23,165.2,19.26121726]
[1749600779858,18.64964886,165.23,165.21,19.26121726]
[1749600780175,18.64964886,165.23,165.14,0.14216157]
[1749600780176,26.0,165.24,165.14,26.14216157]
[1749600780353,6.44,165.23,165.14,26.14216157]
[1749600780547,6.44,165.23,165.22,19.26121726]
[1749600782050,25.08964886,165.23,165.16,6.4285]
[1749600782250,25.08964886,165.23,165.2,19.26121726]
[1749600782467,25.08964886,165.23,165.16,6.4285]
[1749600782468,25.08964886,165.23,165.22,19.26121726]
[1749600782753,6.44,165.23,165.22,19.26121726]
[1749600782967,6.44,165.23,165.17,0.14216157]
[1749600783288,6.44,165.23,165.22,19.26121726]
[1749600784469,6.44,165.23,165.19,26.0]
[1749600784879,6.44,165.23,165.22,19.26121726]
[1749600787561,6.44,165.23,165.17,0.14216157]
[1749600787769,6.44,165.23,165.22,19.26121726]
[1749600788064,6.44,165.23,165.14,27.02]
[1749600788264,18.64964886,165.22,165.18,19.26121726]
[1749600788678,18.64964886,165.22,165.2,19.26121726]
[1749600788879,6.44,165.23,165.21,19.26121726]
[1749600789296,6.44,165.23,165.22,19.26121726]
[1749600789597,6.7,165.23,165.22,19.26121726]
[1749600790774,6.7,165.23,165.22,45.26121726]
[1749600790995,6.7,165.23,165.22,51.58507883]
[1749600791479,6.7,165.23,165.22,32.32386157]
[1749600791670,6.7,165.23,165.22,51.58507883]
[1749600792295,6.7,165.23,165.22,25.58507883]
[1749600792500,6.7,165.23,165.22,51.58507883]
[1749600792704,6.7,165.23,165.22,25.58507883]
[1749600793226,6.0773,165.39,165.25,26.0]
[1749600793433,18.64964886,165.36,165.31,19.26121726]
[1749600793730,18.64964886,165.36,165.26,27.14216157]
[1749600793731,27.58,165.32,165.26,27.14216157]
[1749600793889,27.58,165.32,165.3,19.26121726]
[1749600794507,46.22964886,165.32,165.31,19.26121726]
[1749600794791,46.22964886,165.32,165.26,27.0]
[1749600795002,46.22964886,165.32,165.31,19.26121726]
[1749600795211,18.64964886,165.31,165.3,19.26121726]
[1749600795414,18.64964886,165.31,165.22,6.1817]
[1749600795595,37.91086612,165.31,165.26,19.26121726]
[1749600795914,19.26121726,165.3,165.25,19.26121726]
[1749600796091,18.64964886,165.28,165.24,19.26121726]
[1749600796287,29.2408,165.32,165.26,19.26121726]
[1749600796288,18.64964886,165.31,165.26,19.26121726]
[1749600796522,37.91086612,165.31,165.26,19.26121726]
[1749600797221,37.91086612,165.31,165.28,19.26121726]
[1749600797222,18.64964886,165.31,165.28,19.26121726]
[1749600797418,18.64964886,165.31,165.22,26.0]
[1749600797717,37.91086612,165.31,165.26,19.26121726]
[1749600798015,18.64964886,165.28,165.24,19.26121726]
[1749600798418,18.64964886,165.27,165.23,19.26121726]
[1749600799409,18.64964886,165.27,165.2,26.0]
[1749600799612,18.64964886,165.27,165.23,19.26121726]
[1749600800427,18.64964886,165.26,165.22,19.26121726]
[1749600800594,18.64964886,165.26,165.2,26.0]
[1749600801007,18.64964886,165.26,165.23,19.26121726]
[1749600801601,18.64964886,165.26,165.2,26.0]
[1749600801802,18.64964886,165.26,165.22,19.26121726]
[1749600802219,18.64964886,165.25,165.17,32.2406]
[1749600802522,37.91086612,165.25,165.21,19.26121726]
[1749600802697,37.91086612,165.25,165.2,19.26121726]
[1749600803901,44.64964886,165.27,165.2,19.26121726]
[1749600805816,37.91086612,165.24,165.19,19.26121726]
[1749600806004,18.64964886,165.24,165.2,19.26121726]
[1749600806212,37.91086612,165.21,165.16,19.26121726]
[1749600806409,18.64964886,165.19,165.16,19.26121726]
[1749600806608,18.64964886,165.19,165.13,32.4632]
[1749600806609,18.64964886,165.19,165.15,19.26121726]
[1749600807120,18.64964886,165.19,165.12,1.6301]
[1749600807308,18.64964886,165.19,165.16,19.26121726]
[1749600807709,18.64964886,165.19,165.12,1.6301]
[1749600808025,18.64964886,165.19,165.16,19.26121726]
[1749600808502,18.64964886,165.19,165.13,26.0]
[1749600808701,18.64964886,165.19,165.16,19.26121726]
[1749600808919,18.64964886,165.19,165.13,26.0]
[1749600809098,18.64964886,165.19,165.16,19.26121726]
[1749600809300,18.64964886,165.19,165.13,26.0]
[1749600809518,18.64964886,165.19,165.18,19.26121726]
[1749600810307,18.64964886,165.19,165.17,19.26121726]
[1749600810509,18.64964886,165.19,165.13,26.0]
[1749600810708,18.64964886,165.19,165.17,19.26121726]
[1749600811322,6.7,165.2,165.18,19.26121726]
[1749600811499,6.7,165.2,165.13,26.0]
[1749600811500,6.7,165.2,165.19,19.26121726]
[1749600812003,1.5347,165.27,165.19,19.26121726]
[1749600812204,6.7,165.26,165.24,19.26121726]
[1749600812411,1.6589,165.31,165.25,19.26121726]
[1749600812607,6.7,165.3,165.29,19.26121726]
[1749600812830,25.34964886,165.3,165.29,19.26121726]
[1749600813443,25.34964886,165.3,165.24,26.0]
[1749600813948,25.34964886,165.3,165.29,19.26121726]
[1749600815540,6.7,165.3,165.29,19.26121726]
[1749600815851,6.62,165.3,165.29,38.52243452]
[1749600816014,6.62,165.3,165.29,38.66459609]
[1749600816214,20.88,165.32,165.31,26.0]
[1749600816410,27.5,165.32,165.31,72.26337883]
[1749600816635,27.5,165.32,165.31,76.99738521]
[1749600817014,27.5,165.32,165.31,72.26337883]
[1749600817222,27.5,165.32,165.31,75.34888383]
[1749600818145,27.5,165.32,165.31,80.04899203]
[1749600818394,27.5,165.32,165.31,75.34888383]
[1749600818918,6.62,165.36,165.32,18.79181043]
[1749600819140,6.62,165.38,165.36,0.14216157]
[1749600819352,6.62,165.38,165.37,19.40337883]
[1749600821758,6.62,165.38,165.37,19.26121726]
[1749600823832,6.62,165.38,165.36,26.88]
[1749600824033,6.62,165.38,165.37,19.26121726]
[1749600824338,6.62,165.38,165.37,19.40337883]
[1749600824529,6.62,165.38,165.37,46.20337883]
[1749600827370,6.62,165.38,165.37,65.46459609]
[1749600827665,6.62,165.38,165.37,46.20337883]
[1749600827954,6.62,165.41,165.38,0.14216157]
[1749600828170,6.62,165.41,165.4,38.66459609]
[1749600833265,6.62,165.41,165.4,64.66459609]
[1749600833451,6.62,165.41,165.4,38.66459609]
[1749600833654,6.62,165.41,165.4,133.93728426]
[1749600834539,6.62,165.41,165.4,152.58693312]
[1749600834737,6.62,165.46,165.43,26.0]
[1749600834946,6.62,165.46,165.45,19.26121726]
[1749600837460,6.62,165.46,165.41,52.66]
[1749600837461,25.26964886,165.46,165.41,52.66]
[1749600837665,25.26964886,165.46,165.43,19.26121726]
[1749600837848,25.26964886,165.46,165.44,19.26121726]
[1749600839540,25.26964886,165.46,165.43,19.26121726]
[1749600839739,25.26964886,165.46,165.44,19.26121726]
[1749600840166,25.26964886,165.46,165.45,19.26121726]
[1749600840462,25.26964886,165.46,165.44,19.26121726]
[1749600840772,26.0,165.43,165.42,19.26121726]
[1749600840972,26.0,165.43,165.41,19.26121726]
[1749600840973,27.518,165.43,165.41,19.26121726]
[1749600841149,1.518,165.43,165.41,19.26121726]
[1749600841964,1.518,165.43,165.37,0.14216157]
[1749600842144,1.518,165.43,165.41,19.26121726]
[1749600842861,1.6132,165.5,165.42,0.14216157]
[1749600843167,6.46,165.49,165.42,0.14216157]
[1749600843380,25.10964886,165.49,165.48,19.26121726]
[1749600843557,25.10964886,165.49,165.42,0.14216157]
[1749600843753,25.10964886,165.49,165.47,19.26121726]
[1749600843964,25.10964886,165.49,165.45,19.26121726]
[1749600843965,18.64964886,165.48,165.45,19.26121726]
[1749600844355,18.64964886,165.48,165.44,19.26121726]
[1749600844963,18.64964886,165.48,165.38,26.14216157]
[1749600845275,18.64964886,165.47,165.43,19.26121726]
[1749600845679,18.64964886,165.47,165.39,26.6]
[1749600845852,18.64964886,165.48,165.46,19.26121726]
[1749600846052,6.46,165.49,165.47,19.26121726]
[1749600846252,6.46,165.49,165.48,19.26121726]
[1749600850275,6.46,165.49,165.46,26.0]
[1749600850579,6.46,165.49,165.48,19.26121726]
[1749600851670,6.46,165.49,165.44,26.14216157]
[1749600851978,6.46,165.49,165.48,19.26121726]
[1749600854577,6.46,165.49,165.44,26.14216157]
[1749600854882,6.46,165.49,165.48,19.26121726]
[1749600855377,6.46,165.49,165.44,113.44216157]
[1749600856580,18.64964886,165.46,165.43,19.26121726]
[1749600856972,18.64964886,165.47,165.44,19.26121726]
[1749600857482,17.64964886,165.47,165.44,19.26121726]
[1749600857681,17.64964886,165.47,165.41,26.0]
[1749600857983,17.64964886,165.47,165.44,19.26121726]
[1749600858183,17.64964886,165.47,165.4,26.0]
[1749600858184,36.91086612,165.47,165.4,26.0]
[1749600858397,20.91181726,165.46,165.41,19.26121726]
[1749600859081,20.91181726,165.46,165.42,19.26121726]
[1749600859290,19.26121726,165.45,165.4,45.26121726]
[1749600859473,18.64964886,165.44,165.4,26.0]
[1749600859671,18.64964886,165.44,165.4,45.26121726]
[1749600859876,37.91086612,165.45,165.4,45.26121726]
[1749600860669,37.91086612,165.45,165.4,26.0]
[1749600860871,37.91086612,165.45,165.4,45.26121726]
[1749600861086,1.6506,165.46,165.4,26.0]
[1749600861265,1.6506,165.46,165.42,19.26121726]
[1749600861462,18.64964886,165.48,165.4,26.0]
[1749600861463,19.26121726,165.48,165.43,19.26121726]
[1749600861667,18.64964886,165.47,165.44,19.26121726]
[1749600864374,6.46,165.48,165.47,19.26121726]
[1749600871497,6.46,165.48,165.45,26.0]
[1749600871682,6.46,165.48,165.47,19.26121726]
[1749600873481,5.46,165.48,165.45,26.0]
[1749600873683,5.46,165.48,165.47,19.26121726]
[1749600873912,5.46,165.48,165.45,26.0]
[1749600874201,5.46,165.48,165.47,19.26121726]
[1749600874403,5.46,165.48,165.46,19.26121726]
[1749600875111,5.46,165.48,165.47,19.26121726]
[1749600875492,5.46,165.48,165.47,19.40337883]
[1749600875687,5.46,165.48,165.47,26.34]
[1749600875881,5.46,165.48,165.47,45.74337883]
[1749600876386,5.46,165.48,165.47,71.74337883]
[1749600876891,5.46,165.48,165.47,26.48216157]
[1749600877098,5.46,165.48,165.47,45.74337883]
[1749600877886,5.46,165.48,165.47,71.74337883]
[1749600878495,5.46,165.48,165.47,52.48216157]
[1749600878699,5.46,165.48,165.47,71.74337883]
[1749600879692,5.46,165.48,165.47,159.04337883]
[1749600880085,5.46,165.48,165.47,139.64]
[1749600880285,5.46,165.48,165.47,132.56121726]
[1749600882083,5.46,165.48,165.47,113.3]
[1749600882288,5.46,165.48,165.47,132.56121726]
[1749600885119,5.46,165.48,165.47,113.3]
[1749600885419,5.46,165.48,165.47,87.3]
[1749600885721,5.46,165.48,165.46,19.26121726]
[1749600886418,5.46,165.48,165.47,19.26121726]
[1749600887612,5.46,165.48,165.45,113.3]
[1749600887816,24.72121726,165.48,165.43,87.3]
[1749600888000,19.26121726,165.47,165.4,87.3]
[1749600888314,19.26121726,165.47,165.42,19.26121726]
[1749600888315,37.91086612,165.47,165.42,19.26121726]
[1749600888692,19.26121726,165.45,165.41,19.26121726]
[1749600889195,19.26121726,165.46,165.41,19.26121726]
[1749600890718,19.26121726,165.46,165.4,26.0]
[1749600890898,19.26121726,165.46,165.41,19.26121726]
[1749600891099,19.26121726,165.46,165.39,26.0]
[1749600891307,18.64964886,165.45,165.41,19.26121726]
[1749600892094,18.64964886,165.45,165.39,26.0]
[1749600892306,18.64964886,165.45,165.41,19.26121726]
[1749600893219,18.64964886,165.45,165.41,11.56211728]
[1749600894206,30.21176614,165.45,165.41,11.56211728]
[1749600895921,18.64964886,165.45,165.41,11.56211728]
[1749600897110,18.64964886,165.45,165.39,26.0]
[1749600897417,11.56211728,165.45,165.4,11.56211728]
[1749600897804,18.64964886,165.45,165.41,11.56211728]
[1749600899120,18.64964886,165.45,165.42,11.56211728]
[1749600900827,5.46,165.48,165.44,11.56211728]
[1749600900828,18.64964886,165.47,165.44,11.56211728]
[1749600900997,18.64964886,165.47,165.4,113.3]
[1749600901203,30.21176614,165.47,165.42,11.56211728]
[1749600901526,11.56211728,165.46,165.42,11.56211728]
[1749600901712,30.21176614,165.47,165.42,11.56211728]
[1749600902121,18.64964886,165.47,165.42,11.56211728]
[1749600902310,5.46,165.48,165.45,11.56211728]
[1749600902805,5.46,165.48,165.44,11.56211728]
[1749600903523,5.46,165.48,165.46,11.56211728]
[1749600903720,5.46,165.48,165.45,11.56211728]
[1749600904226,5.46,165.48,165.46,11.56211728]
[1749600904629,5.46,165.48,165.45,11.56211728]
[1749600904923,5.46,165.48,165.42,26.0]
[1749600905133,5.46,165.48,165.46,11.56211728]
[1749600905303,5.46,165.48,165.47,11.56211728]
[1749600907029,5.46,165.48,165.47,37.56211728]
[1749600907903,5.46,165.48,165.47,37.70427885]
[1749600908726,5.46,165.48,165.47,63.82427885]
[1749600910320,5.46,165.48,165.47,37.82427885]
[1749600911330,5.46,165.48,165.47,26.12]
[1749600911519,5.46,165.48,165.47,11.56211728]
[1749600911936,5.46,165.48,165.45,7.97268817]
[1749600912234,5.46,165.48,165.46,11.56211728]
[1749600913542,5.46,165.48,165.47,11.56211728]
[1749600914219,5.46,165.48,165.44,113.38]
[1749600914566,18.64964886,165.47,165.39,7.14948094]
[1749600914712,18.64964886,165.47,165.34,6.04812342]
[1749600914713,37.56211728,165.44,165.33,7.97268817]
[1749600914913,37.56211728,165.44,165.32,7.14948094]
[1749600914914,37.56211728,165.44,165.39,11.56211728]
[1749600915329,37.56211728,165.44,165.33,26.0]
[1749600915330,26.0,165.44,165.4,11.56211728]
[1749600916117,37.56211728,165.44,165.4,11.56211728]
[1749600916352,37.56211728,165.44,165.39,11.56211728]
[1749600916948,18.64964886,165.43,165.39,11.56211728]
[1749600917110,18.64964886,165.43,165.4,11.56211728]
[1749600918414,18.64964886,165.43,165.36,11.56211728]
[1749600918619,18.64964886,165.41,165.37,11.56211728]
[1749600918821,18.64964886,165.41,165.32,21.42893068]
[1749600918822,30.21176614,165.41,165.36,11.56211728]
[1749600919020,26.0,165.38,165.32,7.97268817]
[1749600919225,6.14,165.37,165.33,11.56211728]
[1749600919427,11.56211728,165.35,165.31,11.56211728]
[1749600919628,11.56211728,165.34,165.3,11.56211728]
[1749600920234,11.56211728,165.34,165.27,11.03819812]
[1749600920431,18.64964886,165.36,165.31,11.56211728]
[1749600920740,26.0,165.33,165.31,11.56211728]
[1749600921235,26.0,165.33,165.3,19.29637479]
[1749600921425,26.0,165.33,165.27,7.97268817]
[1749600921618,26.0,165.33,165.31,19.29637479]
[1749600922430,18.64964886,165.36,165.32,19.29637479]
[1749600922614,6.14,165.37,165.35,19.29637479]
[1749600923028,6.14,165.37,165.31,0.14216157]
[1749600923227,6.14,165.37,165.35,19.29637479]
[1749600923461,6.14,165.37,165.31,0.14216157]
[1749600923745,6.14,165.37,165.35,19.29637479]
[1749600924242,6.14,165.37,165.36,19.29637479]
[1749600925023,6.14,165.37,165.35,19.29637479]
[1749600925216,6.14,165.37,165.31,0.14216157]
[1749600925416,6.14,165.37,165.36,19.29637479]
[1749600926634,6.14,165.37,165.31,87.44216157]
[1749600926839,6.14,165.37,165.34,19.29637479]
[1749600927144,6.14,165.37,165.33,19.29637479]
[1749600927444,6.14,165.37,165.34,19.29637479]
[1749600927637,6.14,165.37,165.31,87.3]
[1749600927940,6.14,165.37,165.34,19.29637479]
[1749600928144,6.14,165.37,165.33,19.29637479]
[1749600929150,6.14,165.37,165.31,87.3]
[1749600929344,6.14,165.37,165.33,19.29637479]
[1749600929949,6.14,165.37,165.36,19.29637479]
[1749600931422,6.14,165.37,165.36,19.43853636]
[1749600931856,6.14,165.37,165.32,127.35988817]
[1749600932148,6.14,165.37,165.33,0.14216157]
[1749600932327,6.14,165.37,165.32,95.27268817]
[1749600932530,6.14,165.37,165.36,19.29637479]
[1749600934649,6.14,165.37,165.36,0.14216157]
[1749600934831,6.14,165.37,165.36,19.29637479]
[1749600935328,6.14,165.37,165.36,19.43853636]
[1749600937254,6.14,165.37,165.36,45.43853636]
[1749600940028,18.65547688,165.55,165.37,7.29164251]
[1749600940029,6.14,165.41,165.37,7.29164251]
[1749600940346,1.5167,165.49,165.41,0.14216157]
[1749600940659,6.14,165.5,165.48,19.29637479]
[1749600940948,6.14,165.5,165.44,0.14216157]
[1749600941157,6.14,165.5,165.45,26.08]
[1749600941449,1.5167,165.53,165.45,26.08]
[1749600941450,1.5167,165.53,165.49,19.29637479]
[1749600941650,1.5167,165.53,165.52,19.29637479]
[1749600941860,7.6567,165.53,165.48,26.0]
[1749600942232,6.14,165.53,165.49,0.14216157]
[1749600942636,6.14,165.53,165.52,19.29637479]
[1749600943152,6.14,165.53,165.48,52.14]
[1749600943360,25.43637479,165.53,165.49,19.29637479]
[1749600944462,6.14,165.53,165.49,19.29637479]
[1749600944853,6.14,165.53,165.48,26.0]
[1749600945151,6.14,165.53,165.49,19.29637479]
[1749600945350,6.14,165.53,165.48,26.0]
[1749600945535,6.14,165.53,165.49,11.55093915]
[1749600946263,17.69093915,165.53,165.48,37.55093915]
[1749600946836,6.14,165.53,165.49,11.55093915]
[1749600947647,17.69093915,165.53,165.48,26.0]
[1749600947969,17.69093915,165.53,165.48,37.55093915]
[1749600948851,6.14,165.53,165.48,37.55093915]
[1749600949046,17.69093915,165.53,165.48,37.55093915]
[1749600949661,17.69093915,165.53,165.48,26.0]
[1749600949868,17.69093915,165.53,165.48,37.55093915]
[1749600950256,6.14,165.53,165.48,37.55093915]
[1749600950447,6.14,165.53,165.45,26.30216157]
[1749600950448,11.55093915,165.51,165.46,11.55093915]
[1749600950771,18.64964886,165.52,165.44,87.3]
[1749600950772,30.20058801,165.5,165.44,87.3]
[1749600950979,11.55093915,165.47,165.43,11.55093915]
[1749600951261,13.08613915,165.49,165.44,11.55093915]
[1749600951771,11.55093915,165.48,165.42,113.3]
[1749600952073,11.55093915,165.48,165.43,11.55093915]
[1749600952241,13.08613915,165.49,165.44,11.55093915]
[1749600952668,0.36314322,165.54,165.47,26.0]
[1749600952964,6.14,165.51,165.49,11.55093915]
[1749600953260,6.14,165.51,165.5,11.55093915]
[1749600954147,6.14,165.51,165.5,11.69310072]
[1749600954542,0.36314322,165.54,165.48,6.5471]
[1749600954751,11.55093915,165.49,165.44,11.55093915]
[1749600955071,11.55093915,165.48,165.42,26.08]
[1749600955280,19.26500244,165.48,165.43,19.26500244]
[1749600955451,19.26500244,165.48,165.45,26.0]
[1749600955952,19.26500244,165.48,165.43,19.26500244]
[1749600956150,19.26500244,165.48,165.45,26.0]
[1749600956764,18.64964886,165.49,165.45,26.0]
[1749600956945,19.26500244,165.48,165.45,26.0]
[1749600957354,19.26500244,165.48,165.43,19.26500244]
[1749600957556,19.26500244,165.48,165.42,26.08]
[1749600957762,18.64964886,165.49,165.43,19.26500244]
[1749600957968,19.26500244,165.48,165.44,19.26500244]
[1749600958274,18.64964886,165.49,165.4,9.56724181]
[1749600958275,19.26500244,165.45,165.4,19.26500244]
[1749600958679,19.26500244,165.42,165.37,7.97268817]
[1749600958857,25.40500244,165.41,165.36,19.26500244]
[1749600959061,25.40500244,165.41,165.36,45.34500244]
[1749600959551,25.40500244,165.41,165.37,19.26500244]
[1749600959968,6.14,165.41,165.37,19.26500244]
[1749600961070,6.14,165.41,165.38,19.26500244]
[1749600961479,6.14,165.41,165.36,26.08]
[1749600961480,6.14,165.41,165.39,19.26500244]
[1749600961775,6.14,165.41,165.36,26.08]
[1749600961973,6.14,165.41,165.38,19.26500244]
[1749600962153,6.14,165.41,165.34,19.26500244]
[1749600962154,19.26500244,165.39,165.34,19.26500244]
[1749600962573,20.91220244,165.4,165.35,19.26500244]
[1749600962767,20.91220244,165.4,165.28,7.97268817]
[1749600962768,19.26500244,165.37,165.28,7.97268817]
[1749600962973,19.26500244,165.35,165.3,19.26500244]
[1749600963166,19.26500244,165.33,165.28,19.26500244]
[1749600963377,18.64964886,165.35,165.28,19.26500244]
[1749600963680,45.26500244,165.36,165.31,19.26500244]
[1749600963887,19.26500244,165.35,165.27,0.14216157]
[1749600964187,20.91220244,165.4,165.27,26.12]
[1749600964188,44.64964886,165.37,165.27,26.12]
[1749600964366,19.26500244,165.34,165.29,19.26500244]
[1749600964755,44.64964886,165.37,165.27,26.12]
[1749600964959,19.26500244,165.35,165.31,19.26500244]
[1749600965178,18.64964886,165.36,165.28,26.32216157]
[1749600965363,45.26500244,165.37,165.32,19.26500244]
[1749600965563,1.6472,165.4,165.36,19.26500244]
[1749600965868,6.0711,165.42,165.36,19.26500244]
[1749600965869,6.18,165.42,165.39,19.26500244]
[1749600966069,6.18,165.42,165.41,19.26500244]
[1749600966288,6.18,165.42,165.41,19.40716401]
[1749600966480,6.18,165.42,165.41,45.58716401]
[1749600967971,6.18,165.42,165.41,45.44500244]
[1749600968274,6.18,165.42,165.4,19.26500244]
[1749600968457,6.18,165.42,165.41,19.26500244]
[1749600969581,6.18,165.42,165.38,19.26500244]
[1749600969763,6.18,165.42,165.36,0.14216157]
[1749600969965,6.18,165.42,165.38,19.26500244]
[1749600970192,37.9146513,165.41,165.34,26.0]
[1749600970375,19.26500244,165.4,165.36,19.26500244]
[1749600970579,19.26500244,165.4,165.35,19.26500244]
[1749600970883,18.64964886,165.39,165.35,19.26500244]
[1749600971284,18.64964886,165.39,165.36,19.26500244]
[1749600971462,18.64964886,165.4,165.37,19.26500244]
[1749600971661,18.64964886,165.41,165.32,52.2]
[1749600971862,18.64964886,165.41,165.37,19.26500244]
[1749600972381,18.64964886,165.41,165.35,26.0]
[1749600972586,37.9146513,165.41,165.36,19.26500244]
[1749600972970,18.64964886,165.41,165.38,19.26500244]
[1749600973291,33.71140244,165.42,165.38,19.26500244]
[1749600973511,7.8178,165.42,165.4,19.26500244]
[1749600973791,7.8178,165.42,165.39,19.26500244]
[1749600973973,7.8178,165.42,165.38,19.26500244]
[1749600974589,27.08280244,165.42,165.35,0.14216157]
[1749600974764,18.64964886,165.41,165.37,19.26500244]
[1749600974966,37.9146513,165.41,165.36,19.26500244]
[1749600975165,37.9146513,165.41,165.34,113.3]
[1749600975166,19.26500244,165.39,165.35,26.0]
[1749600975372,18.64964886,165.39,165.35,19.26500244]
[1749600975574,18.64964886,165.39,165.36,19.26500244]
[1749600975778,7.8178,165.42,165.32,113.3]
[1749600975779,18.64964886,165.4,165.32,113.3]
[1749600976093,18.64964886,165.4,165.36,19.26500244]
[1749600976288,18.64964886,165.4,165.35,19.26500244]
[1749600976590,18.64964886,165.4,165.36,19.26500244]
[1749600978290,18.64964886,165.41,165.37,19.26500244]
[1749600978795,18.64964886,165.41,165.35,26.0]
[1749600979496,18.64964886,165.41,165.37,19.26500244]
[1749600979997,37.9146513,165.41,165.36,19.26500244]
[1749600980392,18.64964886,165.41,165.37,19.26500244]
[1749600980791,7.8178,165.42,165.39,19.26500244]
[1749600981297,7.8178,165.42,165.38,19.26500244]
[1749600981498,7.8178,165.42,165.36,26.0]
[1749600981710,27.08280244,165.42,165.37,19.26500244]
[1749600981904,27.08280244,165.42,165.38,19.26500244]
[1749600982481,7.8178,165.42,165.4,19.26500244]
[1749600982685,6.18,165.42,165.41,19.26500244]
[1749600982888,6.18,165.42,165.4,19.26500244]
[1749600983193,18.64964886,165.41,165.37,19.26500244]
[1749600983597,6.18,165.42,165.34,52.14]
[1749600983598,6.18,165.42,165.4,19.26500244]
[1749600983799,6.18,165.42,165.41,19.26500244]
[1749600984380,6.18,165.42,165.37,26.0]
[1749600984598,6.18,165.42,165.4,19.26500244]
[1749600987982,7.9593,165.46,165.41,19.26500244]
[1749600988194,18.64964886,165.49,165.45,19.26500244]
[1749600988395,6.18,165.48,165.47,19.26500244]
[1749600988797,6.18,165.48,165.46,19.26500244]
[1749600989320,6.18,165.48,165.47,19.26500244]
[1749600989622,6.18,165.49,165.47,19.26500244]
[1749600989827,6.18,165.49,165.48,19.26500244]
[1749600990612,6.18,165.49,165.48,19.40716401]
[1749600991201,6.18,165.49,165.48,26.14216157]
[1749600991511,6.18,165.49,165.48,45.40716401]
[1749600992009,6.18,165.49,165.48,19.26500244]
[1749600992315,6.18,165.49,165.48,45.26500244]
[1749600993201,6.18,165.49,165.48,45.40716401]
[1749600993383,6.18,165.49,165.48,19.40716401]
[1749600994499,6.18,165.49,165.48,45.40716401]
[1749600994698,6.18,165.49,165.48,19.40716401]
[1749600994993,6.18,165.49,165.48,106.70716401]
[1749600996812,6.18,165.49,165.48,109.78825174]
[1749600997387,6.18,165.49,165.48,90.5232493]
[1749600997584,6.18,165.49,165.48,132.70716401]
[1749600998598,6.18,165.49,165.48,132.86716401]
[1749600999003,6.18,165.49,165.48,64.83216645]
[1749600999406,6.2,165.52,165.51,26.0]
[1749600999590,6.2,165.52,165.51,71.56716401]
[1749601000207,0.36314322,165.54,165.52,0.14216157]
[1749601000396,6.2,165.53,165.52,0.14216157]
[1749601000721,6.2,165.53,165.52,26.28216157]
[1749601001218,6.2,165.53,165.52,45.54716401]
[1749601001421,6.2,165.53,165.52,71.40500244]
[1749601001918,6.2,165.53,165.52,71.54716401]
[1749601002112,6.2,165.53,165.5,19.26500244]
[1749601002113,6.2,165.53,165.48,26.16]
[1749601002291,18.64964886,165.52,165.42,6.5104]
[1749601002493,37.9146513,165.52,165.47,19.26500244]
[1749601002693,18.64964886,165.52,165.48,19.26500244]
[1749601003495,18.64964886,165.52,165.43,7.86757774]
[1749601003711,18.64964886,165.52,165.48,19.26500244]
[1749601004194,18.64964886,165.52,165.49,19.26500244]
[1749601004394,25.46500244,165.53,165.47,26.0]
[1749601004602,18.64964886,165.52,165.48,19.26500244]
[1749601005002,6.2,165.53,165.48,19.26500244]
[1749601005205,37.9146513,165.52,165.47,26.0]
[1749601005406,1.5414,165.5,165.46,19.26500244]
[1749601005699,1.5414,165.5,165.43,52.14]
[1749601005922,1.5414,165.5,165.47,19.26500244]
[1749601006642,1.5414,165.5,165.48,19.26500244]
[1749601006800,18.64964886,165.52,165.44,0.14216157]
[1749601007120,32.2,165.53,165.44,0.14216157]
[1749601007510,32.2,165.53,165.48,19.26500244]
[1749601007900,37.9146513,165.52,165.44,0.14216157]
[1749601008299,37.9146513,165.52,165.48,19.26500244]
[1749601008501,18.64964886,165.52,165.48,19.26500244]
[1749601008710,32.2,165.53,165.49,19.26500244]
[1749601009826,32.2,165.53,165.44,87.44216157]